fUST/lending_fUST_20251109
["ID","MTS","AMOUNT","RATE_DAILY","PERIOD"]
[393418280,1762637438477,-749.25315189,0.00023033,2]
[393418281,1762637438488,-1332.00560335,0.00023033,2]
[393418282,1762637438497,-2081.25875524,0.00023033,2]
[393418283,1762637438507,-7368.89846329,0.00023616,2]
[393418284,1762637438518,-288.39211923,0.00023642,2]
[393418285,1762637438527,-1000.0,0.00023716,2]
[393418286,1762637438537,-1000.0,0.00023716,2]
[393418287,1762637438547,-1000.0,0.00023716,2]
[393418288,1762637438557,-1000.0,0.00023716,2]
[393418289,1762637438566,-1000.0,0.00023716,2]
[393418290,1762637438576,-1000.0,0.00023716,2]
[393418291,1762637438586,-1000.0,0.00023716,2]
[393418292,1762637438596,-1000.0,0.00023716,2]
[393418293,1762637438608,-1000.0,0.00023716,2]
[393418294,1762637438618,-1000.0,0.00023716,2]
[393418295,1762637438628,-1000.0,0.00023716,2]
[393418296,1762637438638,-1000.0,0.00023716,2]
[393418297,1762637438647,-966.6225507,0.00023716,2]
[393418298,1762637438658,-153.14,0.0002372,10]
[393418299,1762637438667,-292.03,0.0002372,10]
[393418300,1762637438679,-237.972596,0.00023729,2]
[393418301,1762637438690,-237.972596,0.00023729,2]
[393418302,1762637438700,-237.972596,0.00023729,2]
[393418303,1762637438710,-237.972596,0.00023729,2]
[393418304,1762637438720,-239.20128041,0.00023729,2]
[393418305,1762637438729,-198.0,0.00023729,2]
[393418306,1762637438739,-500.0,0.00023729,2]
[393418307,1762637438749,-151.0,0.00023729,2]
[393418308,1762637438759,-198.0,0.00023729,2]
[393418309,1762637438768,-151.0,0.00023729,2]
[393418310,1762637438777,-198.0,0.00023729,2]
[393418311,1762637438788,-308.78016165,0.00023729,2]
[393418312,1762637438797,-500.0,0.00023729,2]
[393418313,1762637438806,-500.0,0.00023729,2]
[393418314,1762637438816,-500.0,0.00023729,2]
[393418315,1762637438826,-500.0,0.00023729,2]
[393418316,1762637438836,-500.0,0.00023729,2]
[393418317,1762637438845,-500.0,0.00023729,2]
[393418318,1762637438854,-500.0,0.00023729,2]
[393418319,1762637438864,-500.0,0.00023729,2]
[393418320,1762637438874,-500.0,0.00023729,2]
[393418321,1762637438882,-500.0,0.00023729,2]
[393418322,1762637438891,-500.0,0.00023729,2]
[393418323,1762637438900,-268.83625853,0.00023729,2]
[393418324,1762637438910,-500.0,0.00023729,2]
[393418325,1762637438919,-500.0,0.00023729,2]
[393418326,1762637438929,-500.0,0.00023729,2]
[393418327,1762637438939,-500.0,0.00023729,2]
[393418328,1762637438948,-404.22232514,0.00023729,2]
[393418337,1762637440465,-95.77767486,0.00023729,2]
[393418339,1762637440475,-226.47798413,0.00023729,2]
[393418345,1762637440524,-285.0409801,0.00023729,2]
[393418347,1762637440535,-543.5510219,0.00023729,2]
[393418361,1762637443637,-243.36,0.0002372,10]
[393418362,1762637443647,-17.3187668,0.00023729,2]
[393418363,1762637443657,-171.43677978,0.00023729,2]
[393418426,1762638632746,-3211.44414564,0.00022454,4]
[393418428,1762638632757,-1788.55585436,0.00022454,4]
[393418430,1762638632767,-150.0,0.00023026,2]
[393418432,1762638632777,-171.597,0.00023156,2]
[393418434,1762638632786,-1326.22005745,0.0002344,2]
[393418436,1762638632796,-300.0,0.00023527,2]
[393418438,1762638632805,-6942.569897,0.00023528,2]
[393418440,1762638632815,-797.22541644,0.00023542,2]
[393418442,1762638632825,-800.0,0.00023601,2]
[393418444,1762638632834,-202.8,0.00023619,10]
[393418446,1762638632843,-169.0,0.00023619,10]
[393418448,1762638632853,-190.378077,0.00023628,2]
[393418451,1762638632864,-190.378077,0.00023628,2]
[393418454,1762638632874,-190.378077,0.00023628,2]
[393418457,1762638632884,-190.378077,0.00023628,2]
[393418459,1762638632893,-190.378077,0.00023628,2]
[393418461,1762638632903,-190.378077,0.00023628,2]
[393418462,1762638632912,-190.378077,0.00023628,2]
[393418464,1762638632921,-190.378077,0.00023628,2]
[393418466,1762638632931,-190.378077,0.00023628,2]
[393418468,1762638632940,-190.378077,0.00023628,2]
[393418469,1762638632950,-190.378077,0.00023628,2]
[393418470,1762638632959,-190.378077,0.00023628,2]
[393418471,1762638632968,-151.0,0.00023628,2]
[393418473,1762638632977,-151.0,0.00023628,2]
[393418475,1762638632987,-151.0,0.00023628,2]
[393418477,1762638632996,-291.44274795,0.00023628,2]
[393418479,1762638633005,-500.0,0.00023628,2]
[393418481,1762638633014,-500.0,0.00023628,2]
[393418482,1762638633024,-500.0,0.00023628,2]
[393418484,1762638633037,-500.0,0.00023628,2]
[393418485,1762638633047,-500.0,0.00023628,2]
[393418486,1762638633057,-500.0,0.00023628,2]
[393418487,1762638633067,-500.0,0.00023628,2]
[393418489,1762638633078,-500.0,0.00023628,2]
[393418490,1762638633087,-500.0,0.00023628,2]
[393418491,1762638633097,-500.0,0.00023628,2]
[393418492,1762638633108,-500.0,0.00023628,2]
[393418493,1762638633117,-500.0,0.00023628,2]
[393418494,1762638633127,-500.0,0.00023628,2]
[393418495,1762638633136,-500.0,0.00023628,2]
[393418496,1762638633146,-500.0,0.00023628,2]
[393418497,1762638633156,-500.0,0.00023628,2]
[393418498,1762638633165,-500.0,0.00023628,2]
[393418499,1762638633175,-500.0,0.00023628,2]
[393418500,1762638633185,-500.0,0.00023628,2]
[393418501,1762638633194,-500.0,0.00023628,2]
[393418502,1762638633204,-500.0,0.00023628,2]
[393418503,1762638633213,-500.0,0.00023628,2]
[393418504,1762638633224,-500.0,0.00023628,2]
[393418505,1762638633235,-402.90806739,0.00023628,2]
[393418506,1762638633245,-500.0,0.00023628,2]
[393418507,1762638633254,-500.0,0.00023628,2]
[393418508,1762638633263,-500.0,0.00023628,2]
[393418509,1762638633273,-500.0,0.00023628,2]
[393418510,1762638633283,-500.0,0.00023628,2]
[393418511,1762638633293,-500.0,0.00023628,2]
[393418512,1762638633303,-500.0,0.00023628,2]
[393418513,1762638633312,-500.0,0.00023628,2]
[393418514,1762638633323,-500.0,0.00023628,2]
[393418515,1762638633332,-500.0,0.00023628,2]
[393418516,1762638633342,-500.0,0.00023628,2]
[393418517,1762638633351,-500.0,0.00023628,2]
[393418518,1762638633361,-500.0,0.00023628,2]
[393418519,1762638633371,-500.0,0.00023628,2]
[393418520,1762638633381,-500.0,0.00023628,2]
[393418521,1762638633391,-500.0,0.00023628,2]
[393418522,1762638633401,-230.99931517,0.00023628,2]
[393418523,1762638633410,-500.0,0.00023628,2]
[393418524,1762638633419,-500.0,0.00023628,2]
[393418525,1762638633428,-500.0,0.00023628,2]
[393418526,1762638633438,-500.0,0.00023628,2]
[393418527,1762638633448,-500.0,0.00023628,2]
[393418528,1762638633458,-500.0,0.00023628,2]
[393418529,1762638633468,-500.0,0.00023628,2]
[393418530,1762638633478,-500.0,0.00023628,2]
[393418531,1762638633489,-500.0,0.00023628,2]
[393418532,1762638633499,-282.6354853,0.00023628,2]
[393418533,1762638633509,-500.0,0.00023628,2]
[393418534,1762638633519,-500.0,0.00023628,2]
[393418535,1762638633528,-500.0,0.00023628,2]
[393418536,1762638633538,-500.0,0.00023628,2]
[393418537,1762638633547,-500.0,0.00023628,2]
[393418538,1762638633558,-500.0,0.00023628,2]
[393418539,1762638633567,-500.0,0.00023628,2]
[393418540,1762638633578,-500.0,0.00023628,2]
[393418541,1762638633588,-500.0,0.00023628,2]
[393418542,1762638633598,-500.0,0.00023628,2]
[393418543,1762638633608,-500.0,0.00023628,2]
[393418544,1762638633618,-500.0,0.00023628,2]
[393418545,1762638633628,-500.0,0.00023628,2]
[393418546,1762638633637,-500.0,0.00023628,2]
[393418547,1762638633647,-500.0,0.00023628,2]
[393418548,1762638633656,-500.0,0.00023628,2]
[393418549,1762638633666,-500.0,0.00023628,2]
[393418550,1762638633676,-500.0,0.00023628,2]
[393418551,1762638633686,-500.0,0.00023628,2]
[393418552,1762638633696,-500.0,0.00023628,2]
[393418553,1762638633707,-500.0,0.00023628,2]
[393418554,1762638633718,-500.0,0.00023628,2]
[393418555,1762638633728,-500.0,0.00023628,2]
[393418556,1762638633740,-500.0,0.00023628,2]
[393418557,1762638633750,-500.0,0.00023628,2]
[393418558,1762638633760,-500.0,0.00023628,2]
[393418559,1762638633770,-500.0,0.00023628,2]
[393418560,1762638633779,-500.0,0.00023628,2]
[393418561,1762638633789,-500.0,0.00023628,2]
[393418562,1762638633799,-500.0,0.00023628,2]
[393418563,1762638633809,-621.99021598,0.00023628,2]
[393418564,1762638633819,-190.378077,0.00023629,2]
[393418565,1762638633829,-190.378077,0.00023629,2]
[393418566,1762638633838,-190.378077,0.00023629,2]
[393418567,1762638633849,-190.378077,0.00023629,2]
[393418568,1762638633859,-255504.77661052,0.00023629,2]
[393418577,1762638638489,-845.02,0.00023619,10]
[393418578,1762638638499,-3218.4045101,0.00023629,2]
[393418579,1762638638510,-13613.57071228,0.00023629,2]
[393418580,1762638638529,-11784.38502579,0.00023629,2]
[393418599,1762638640601,-5000.0,0.00023383,4]
[393418601,1762638640611,-320.85,0.00023629,2]
[393418604,1762638640623,-16139.2,0.00023629,2]
[393418608,1762638640659,-12410.84990657,0.00023629,2]
[393418611,1762638640670,-136258.91097111,0.00023629,2]
[393418664,1762638645138,-49231.36675677,0.00023629,2]
[393418674,1762638646906,-5955.88767407,0.00023629,2]
[393418675,1762638646958,-95429.99083911,0.00023629,2]
[393418696,1762639601095,-237.52958368,0.00020407,4]
[393418706,1762639726842,342.850304,0.00013699,2]
[393418754,1762639831734,-1005.0,0.00019986,2]
[393418762,1762639831797,-609.78758453,0.00019986,2]
[393418785,1762639837618,-3385.21241547,0.00019986,2]
[393418786,1762639837627,-342.850304,0.00020187,2]
[393418787,1762639837637,-150.0,0.0002051,2]
[393418788,1762639837646,-157.273858,0.00020613,4]
[393418789,1762639837655,-157.273858,0.00021504,4]
[393418790,1762639837665,-177.0,0.0002251,2]
[393418791,1762639837674,-1000.0,0.00022655,30]
[393418792,1762639837683,-521.0,0.00023526,2]
[393418793,1762639837692,-1462.90748602,0.00023527,2]
[393418794,1762639837702,-1200.0,0.00023527,2]
[393418795,1762639837711,-280.20643515,0.00023622,2]
[393418796,1762639837720,-500.0,0.00023622,2]
[393418797,1762639837729,-500.0,0.00023622,2]
[393418798,1762639837738,-500.0,0.00023622,2]
[393418799,1762639837747,-500.0,0.00023622,2]
[393418800,1762639837756,-500.0,0.00023622,2]
[393418801,1762639837765,-500.0,0.00023622,2]
[393418802,1762639837774,-500.0,0.00023622,2]
[393418803,1762639837783,-500.0,0.00023622,2]
[393418804,1762639837792,-500.0,0.00023622,2]
[393418805,1762639837803,-614.23806541,0.00023622,2]
[393418806,1762639837814,-500.0,0.00023622,2]
[393418807,1762639837823,-500.0,0.00023622,2]
[393418808,1762639837832,-349.40376574,0.00023622,2]
[393418809,1762639837844,-150.59623426,0.00023622,2]
[393418810,1762639837853,-500.0,0.00023622,2]
[393418811,1762639837862,-500.0,0.00023622,2]
[393418812,1762639837871,-500.0,0.00023622,2]
[393418813,1762639837882,-500.0,0.00023622,2]
[393418814,1762639837891,-259.77554643,0.00023622,2]
[393418820,1762639839891,-4006.61659374,0.00023622,2]
[393418893,1762639846273,-895.08,0.00023613,10]
[393418894,1762639846286,-24095.66245993,0.00023622,2]
[393418895,1762639846300,-240.22445357,0.00023622,2]
[393418896,1762639846312,-500.0,0.00023622,2]
[393418897,1762639846324,-500.0,0.00023622,2]
[393418898,1762639846336,-489.40495502,0.00023622,2]
[393418899,1762639846349,-500.0,0.00023622,2]
[393418900,1762639846359,-500.0,0.00023622,2]
[393418901,1762639846369,-500.0,0.00023622,2]
[393418902,1762639846380,-466.64978765,0.00023622,2]
[393418903,1762639846396,-500.0,0.00023622,2]
[393418904,1762639846406,-598.00747111,0.00023622,2]
[393418905,1762639846418,-500.0,0.00023622,2]
[393418906,1762639846428,-500.0,0.00023622,2]
[393418907,1762639846441,-500.0,0.00023622,2]
[393418908,1762639846452,-500.0,0.00023622,2]
[393418909,1762639846465,-500.0,0.00023622,2]
[393418910,1762639846476,-500.0,0.00023622,2]
[393418911,1762639846488,-685000.0,0.00023623,2]
[393418912,1762639846502,-332.0,0.00023629,3]
[393418913,1762639846513,-151.0,0.00023629,3]
[393418915,1762639846523,-332.0,0.00023629,3]
[393418917,1762639846535,-151.0,0.00023629,3]
[393418918,1762639846547,-332.0,0.00023629,3]
[393418919,1762639846557,-332.0,0.00023629,3]
[393418920,1762639846568,-151.0,0.00023629,3]
[393418921,1762639846579,-332.0,0.00023629,3]
[393418922,1762639846588,-151.0,0.00023629,3]
[393418923,1762639846599,-332.0,0.00023629,3]
[393418924,1762639846609,-151.0,0.00023629,3]
[393418925,1762639846619,-332.0,0.00023629,3]
[393418926,1762639846630,-151.0,0.00023629,3]
[393418927,1762639846640,-332.0,0.00023629,3]
[393418928,1762639846651,-151.0,0.00023629,3]
[393418929,1762639846661,-332.0,0.00023629,3]
[393418930,1762639846671,-151.0,0.00023629,3]
[393418931,1762639846682,-332.0,0.00023629,3]
[393418932,1762639846693,-151.0,0.00023629,3]
[393418933,1762639846705,-332.0,0.00023629,3]
[393418934,1762639846717,-332.0,0.00023629,3]
[393418935,1762639846727,-187.71510603,0.00023629,3]
[393418936,1762639846737,-332.0,0.00023629,3]
[393418937,1762639846748,-332.0,0.00023629,3]
[393418938,1762639846758,-332.0,0.00023629,3]
[393418939,1762639846768,-185.57253807,0.00023629,3]
[393418940,1762639846778,-332.0,0.00023629,3]
[393418941,1762639846789,-151.0,0.00023629,3]
[393418942,1762639846799,-151.0,0.00023629,3]
[393418943,1762639846810,-151.0,0.00023629,3]
[393418944,1762639846820,-151.0,0.00023629,3]
[393418945,1762639846831,-151.0,0.00023629,3]
[393418946,1762639846846,-151.0,0.00023629,3]
[393418947,1762639846857,-151.0,0.00023629,3]
[393418948,1762639846867,-322.1818783,0.00023642,2]
[393418949,1762639846879,-150.0,0.000237,2]
[393418950,1762639846889,-1783.3653698,0.00023723,2]
[393418951,1762639846899,-500.0,0.00023729,2]
[393418952,1762639846910,-296.0,0.00023729,2]
[393418953,1762639846921,-500.0,0.00023784,2]
[393418954,1762639846931,-500.0,0.00023839,2]
[393418955,1762639846941,-500.0,0.00023893,2]
[393418956,1762639846952,-168.0,0.00023898,2]
[393418957,1762639846962,-500.0,0.00023948,2]
[393418958,1762639846972,-168.0,0.00023962,2]
[393418959,1762639846982,-500.0,0.00024003,2]
[393418960,1762639846992,-151.25131106,0.00024044,3]
[393418961,1762639847130,-500.0,0.00024058,2]
[393418962,1762639847141,-500.0,0.00024113,2]
[393418963,1762639847151,-500.0,0.00024167,2]
[393418964,1762639847160,-353.0,0.00024222,2]
[393418965,1762639847169,-500.0,0.00024473,2]
[393418966,1762639847179,-111858.56401099,0.000245,2]
[393418967,1762639847188,-152.74,0.000245,7]
[393418968,1762639847197,-204.0,0.0002451,2]
[393418969,1762639847206,-168.0,0.00024532,2]
[393418970,1762639847216,-800.0,0.000247,2]
[393418971,1762639847226,-168.0,0.00024739,2]
[393418972,1762639847235,-151.0,0.000248,6]
[393418973,1762639847244,-800.0,0.000248,2]
[393418974,1762639847253,-151.0,0.000248,9]
[393418975,1762639847263,-202.10360278,0.00024873,2]
[393418976,1762639847272,-168.0,0.00024877,2]
[393418977,1762639847281,-487.14,0.000249,7]
[393418978,1762639847290,-2031.0,0.000249,2]
[393418979,1762639847300,-151.0,0.000249,2]
[393418980,1762639847309,-132802.19218871,0.000249,2]
[393418981,1762639847331,-656.16275011,0.000249,2]
[393419087,1762641031883,-1254.49979616,0.00021825,4]
[393419095,1762641031998,-3745.50020384,0.00021825,4]
[393419096,1762641032008,-150.0,0.00022383,2]
[393419097,1762641032018,-157.273858,0.00023106,4]
[393419098,1762641032028,-270.49170837,0.00023473,2]
[393419100,1762641032037,-300.0,0.0002352,2]
[393419102,1762641032046,-480.0,0.0002352,2]
[393419104,1762641032056,-5625.01974972,0.00023521,2]
[393419105,1762641032065,-316.53990553,0.00023521,2]
[393419106,1762641032074,-500.0,0.00023521,2]
[393419107,1762641032083,-500.0,0.00023521,2]
[393419108,1762641032093,-500.0,0.00023521,2]
[393419109,1762641032102,-161.92874787,0.00023521,2]
[393419110,1762641032112,-500.0,0.00023521,2]
[393419111,1762641032121,-500.0,0.00023521,2]
[393419112,1762641032130,-473.32508409,0.00023521,2]
[393419113,1762641032140,-610.82115732,0.00023521,2]
[393419114,1762641032149,-500.0,0.00023521,2]
[393419115,1762641032159,-500.0,0.00023521,2]
[393419116,1762641032168,-500.0,0.00023521,2]
[393419117,1762641032179,-500.0,0.00023521,2]
[393419118,1762641032190,-500.0,0.00023521,2]
[393419119,1762641032199,-493.96445952,0.00023521,2]
[393419120,1762641032208,-500.0,0.00023521,2]
[393419121,1762641032217,-500.0,0.00023521,2]
[393419122,1762641032228,-168.28760159,0.00023521,2]
[393419123,1762641032238,-617.69790858,0.00023521,2]
[393419124,1762641032247,-500.0,0.00023521,2]
[393419125,1762641032258,-500.0,0.00023521,2]
[393419126,1762641032277,-500.0,0.00023521,2]
[393419127,1762641032298,-174.08812828,0.00023521,2]
[393419128,1762641032310,-500.0,0.00023521,2]
[393419129,1762641032319,-500.0,0.00023521,2]
[393419130,1762641032329,-500.0,0.00023521,2]
[393419131,1762641032338,-500.0,0.00023521,2]
[393419132,1762641032347,-500.0,0.00023521,2]
[393419133,1762641032357,-500.0,0.00023521,2]
[393419134,1762641032366,-500.0,0.00023521,2]
[393419135,1762641032375,-165.767,0.00023521,4]
[393419136,1762641032384,-461716.97068619,0.00023522,2]
[393419160,1762641037763,-218.3,0.00023512,10]
[393419161,1762641037773,-3124.36738458,0.00023522,2]
[393419167,1762641037821,-317.64003234,0.00023522,2]
[393419169,1762641037832,-1806.9324,0.00023522,2]
[393419171,1762641037843,-1441.40699058,0.00023522,2]
[393419184,1762641040114,-28826.84257256,0.00023522,2]
[393419187,1762641040126,-990.0,0.00023522,2]
[393419342,1762641044817,-832.67175704,0.00023277,4]
[393419439,1762641046207,-4167.32824296,0.00023277,4]
[393419441,1762641046217,-181.92,0.00023512,10]
[393419443,1762641046227,-29150.2120237,0.00023522,2]
[393419456,1762641046382,-2959.9999998,0.00023522,2]
[393419499,1762641258184,2272.0,0.00032876,120]
[393419588,1762641365411,-696502.2937,0.00036728,30]
[393419590,1762641365435,-180293.36785719,0.00036728,30]
[393419592,1762641365460,-2912703.42937191,0.00036728,30]
[393419593,1762641365485,-394344.44753885,0.00036728,30]
[393419595,1762641365510,-7342.0,0.00036728,30]
[393419597,1762641365537,-154.8,0.00036728,30]
[393419599,1762641365562,-500.0,0.00036728,60]
[393419601,1762641365588,-500.0,0.00036728,60]
[393419603,1762641365614,-519.19231132,0.00036728,60]
[393419605,1762641365640,-500.0,0.00036728,60]
[393419606,1762641365666,-500.0,0.00036728,60]
[393419608,1762641365690,-469.59741211,0.00036728,60]
[393419610,1762641365716,-500.0,0.00036728,60]
[393419612,1762641365740,-500.0,0.00036728,60]
[393419614,1762641365764,-528.56874048,0.00036728,60]
[393419616,1762641365788,-500.0,0.00036728,60]
[393419618,1762641365812,-500.0,0.00036728,60]
[393419619,1762641365835,-517.36120019,0.00036728,60]
[393419621,1762641365859,-500.0,0.00036728,60]
[393419623,1762641365883,-500.0,0.00036728,60]
[393419625,1762641365908,-521.1289694,0.00036728,60]
[393419627,1762641365932,-500.0,0.00036728,60]
[393419628,1762641365955,-500.0,0.00036728,60]
[393419630,1762641365979,-572.06647641,0.00036728,60]
[393419632,1762641366003,-500.0,0.00036728,60]
[393419634,1762641366027,-500.0,0.00036728,60]
[393419636,1762641366051,-522.70910741,0.00036728,60]
[393419638,1762641366075,-500.0,0.00036728,60]
[393419639,1762641366099,-500.0,0.00036728,60]
[393419641,1762641366123,-500.0,0.00036728,60]
[393419643,1762641366148,-305.11673626,0.00036728,60]
[393419645,1762641366173,-500.0,0.00036728,60]
[393419647,1762641366198,-500.0,0.00036728,60]
[393419649,1762641366223,-500.0,0.00036728,60]
[393419651,1762641366246,-480.75719234,0.00036728,60]
[393419653,1762641366274,-353.4620237,0.00036728,60]
[393419654,1762641366299,-500.0,0.00036728,60]
[393419656,1762641366324,-500.5900162,0.00036728,60]
[393419658,1762641366349,-200.0,0.00036728,60]
[393419660,1762641366377,-200.0,0.00036728,60]
[393419662,1762641366403,-200.0,0.00036728,60]
[393419664,1762641366429,-200.0,0.00036728,60]
[393419666,1762641366454,-205.74653594,0.00036728,60]
[393419668,1762641366481,-500.0,0.00036728,60]
[393419669,1762641366507,-500.0,0.00036728,60]
[393419671,1762641366533,-550.7006745,0.00036728,60]
[393419673,1762641366559,-500.0,0.00036728,60]
[393419675,1762641366587,-500.0,0.00036728,60]
[393419677,1762641366611,-530.08315338,0.00036728,60]
[393419678,1762641366637,-500.0,0.00036728,60]
[393419679,1762641366663,-500.0,0.00036728,60]
[393419680,1762641366689,-529.60791322,0.00036728,60]
[393419681,1762641366715,-500.0,0.00036728,60]
[393419682,1762641366740,-500.0,0.00036728,60]
[393419683,1762641366765,-529.49366825,0.00036728,60]
[393419684,1762641366791,-500.0,0.00036728,60]
[393419685,1762641366816,-500.0,0.00036728,60]
[393419687,1762641366841,-524.42546039,0.00036728,60]
[393419689,1762641366867,-500.0,0.00036728,60]
[393419691,1762641366892,-500.0,0.00036728,60]
[393419693,1762641366917,-521.55108047,0.00036728,60]
[393419695,1762641366942,-500.0,0.00036728,60]
[393419697,1762641366967,-500.0,0.00036728,60]
[393419699,1762641366991,-500.0,0.00036728,60]
[393419701,1762641367015,-416.58718263,0.00036728,60]
[393419706,1762641367122,-534.46225408,0.00036728,60]
[393419708,1762641367148,-369.10076539,0.00036728,60]
[393419710,1762641367172,-500.0,0.00036728,60]
[393419712,1762641367197,-631.45718054,0.00036728,60]
[393419714,1762641367222,-500.0,0.00036728,60]
[393419716,1762641367249,-421.64878833,0.00036728,60]
[393419718,1762641367279,-500.0,0.00036728,60]
[393419721,1762641367308,-562.37755555,0.00036728,60]
[393419723,1762641367338,-500.0,0.00036728,60]
[393419724,1762641367366,-332.25702596,0.00036728,60]
[393419726,1762641367396,-500.0,0.00036728,60]
[393419728,1762641367424,-522.52007079,0.00036728,60]
[393419730,1762641367453,-500.0,0.00036728,60]
[393419732,1762641367479,-500.0,0.00036728,60]
[393419734,1762641367506,-526.79513018,0.00036728,60]
[393419736,1762641367533,-500.0,0.00036728,60]
[393419738,1762641367560,-500.0,0.00036728,60]
[393419740,1762641367587,-500.0,0.00036728,60]
[393419742,1762641367614,-500.0,0.00036728,60]
[393419744,1762641367641,-205.10321949,0.00036728,60]
[393419746,1762641367667,-500.0,0.00036728,60]
[393419748,1762641367692,-500.0,0.00036728,60]
[393419750,1762641367718,-520.89978139,0.00036728,60]
[393419752,1762641367744,-500.0,0.00036728,60]
[393419754,1762641367769,-500.0,0.00036728,60]
[393419756,1762641367794,-500.0,0.00036728,60]
[393419758,1762641367818,-500.0,0.00036728,60]
[393419760,1762641367842,-500.0,0.00036728,60]
[393419762,1762641367867,-500.0,0.00036728,60]
[393419764,1762641367893,-500.0,0.00036728,60]
[393419766,1762641367918,-542.53747482,0.00036728,60]
[393419768,1762641367944,-520.62202271,0.00036728,60]
[393419770,1762641367969,-500.0,0.00036728,60]
[393419772,1762641367993,-500.0,0.00036728,60]
[393419774,1762641368020,-568.28,0.00036728,60]
[393419776,1762641368045,-500.0,0.00036728,60]
[393419778,1762641368071,-500.0,0.00036728,60]
[393419780,1762641368097,-161.27421562,0.00036728,60]
[393419782,1762641368122,-500.0,0.00036728,60]
[393419784,1762641368147,-500.0,0.00036728,60]
[393419786,1762641368172,-518.80796218,0.00036728,60]
[393419788,1762641368198,-500.0,0.00036728,60]
[393419790,1762641368223,-500.0,0.00036728,60]
[393419792,1762641368249,-569.87813115,0.00036728,60]
[393419794,1762641368279,-500.0,0.00036728,60]
[393419796,1762641368307,-500.0,0.00036728,60]
[393419798,1762641368333,-500.0,0.00036728,60]
[393419800,1762641368360,-517.10660092,0.00036728,60]
[393419802,1762641368387,-500.0,0.00036728,60]
[393419804,1762641368416,-572.24404427,0.00036728,60]
[393419806,1762641368444,-500.0,0.00036728,60]
[393419808,1762641368471,-500.0,0.00036728,60]
[393419810,1762641368499,-556.8091149,0.00036728,60]
[393419812,1762641368526,-500.0,0.00036728,60]
[393419814,1762641368552,-500.0,0.00036728,60]
[393419816,1762641368578,-500.0,0.00036728,60]
[393419818,1762641368604,-500.0,0.00036728,60]
[393419820,1762641368631,-619.74762123,0.00036728,60]
[393419822,1762641368659,-500.0,0.00036728,60]
[393419823,1762641368689,-500.0,0.00036728,60]
[393419824,1762641368716,-529.60616042,0.00036728,60]
[393419825,1762641368743,-500.0,0.00036728,60]
[393419826,1762641368769,-500.0,0.00036728,60]
[393419828,1762641368795,-525.159169,0.00036728,60]
[393419830,1762641368823,-500.0,0.00036728,60]
[393419832,1762641368848,-500.0,0.00036728,60]
[393419834,1762641368875,-640.35694344,0.00036728,60]
[393419836,1762641368901,-500.0,0.00036728,60]
[393419838,1762641368927,-500.0,0.00036728,60]
[393419840,1762641368953,-528.4894722,0.00036728,60]
[393419842,1762641368978,-500.0,0.00036728,60]
[393419844,1762641369004,-500.0,0.00036728,60]
[393419846,1762641369030,-525.29161739,0.00036728,60]
[393419848,1762641369056,-500.0,0.00036728,60]
[393419850,1762641369081,-500.0,0.00036728,60]
[393419852,1762641369106,-519.90968857,0.00036728,60]
[393419853,1762641369135,-500.0,0.00036728,60]
[393419855,1762641369164,-500.0,0.00036728,60]